Cogmind - Beta 11.1 @@@ ROGUE MODE // 2022.06.12 @ 14:52:03 Player: Exp. Geonium Core Result: Destroyed by G-47 Trooper with Particle Gun Performance ------------- Evolutions (3) 1500 Regions Visited (10) 2000 Robots Destroyed (76) 380 Value Destroyed (3327) 3327 Prototype IDs (25) 500 Alien Tech Used (0) 0 Bonus (2436) 2436 TOTAL SCORE: 10143 Bonus ------- High Alert Combat Kills 400 Follower Combat Kills 136 Entered Garrisons 600 Used RIF Installer 1000 Aligned with FarCom 300 Cogmind --------- Core Integrity 0/700 Matter 102/300 Energy 86/100 System Corruption 4% Temperature Cool (9) Movement Core (200) Ox3 Location -7/Garrison Parts ------- > --- POWER (1) -------- (None) > --- PROPULSION (2) --- (None) > --- UTILITY (8) ------ Lightpack 2.0 Salvage Targeting Computer Salvage Targeting Computer Relay Coupler [Swarmer] (23) Relay Coupler [Sentry] (19) > --- WEAPON (2) ------- Advanced Assault Cannon > --- INVENTORY (40) --- Light Nuclear Core Potential Leg Cloak of Protection Hacking Suite System Shield Relay Coupler [NC] (27) Relay Coupler [NC] (21) Relay Coupler [NC] (22) Relay Coupler [NC] (31) Relay Coupler [Swarmer] (44) Relay Coupler [Swarmer] (31) Relay Coupler [Sentry] (21) Relay Coupler [Sentry] (21) Relay Coupler [Demolisher] (21) Relay Coupler [Demolisher] (19) Beam Rifle Heavy Laser Light Assault Rifle Flak Gun Advanced Assault Cannon Remote Datajack Katana Katana Peak State ------------ > --- POWER ------------ Light Angular Momentum Engine > --- PROPULSION ------- Potential Leg Potential Leg > --- UTILITY ---------- Improved Heat Sink Lightpack 2.0 Salvage Targeting Computer Salvage Targeting Computer Improved Light Armor Plating Hacking Suite > --- WEAPON ----------- Cooled Pulse Rifle Remote Datajack > --- INVENTORY -------- Light Nuclear Core Light Treads Light Treads Cloak of Protection Improved Weapon Shielding Hacking Suite System Shield Relay Coupler [NC] Relay Coupler [NC] Relay Coupler [Swarmer] Relay Coupler [Swarmer] Relay Coupler [Swarmer] Relay Coupler [Swarmer] Relay Coupler [Sentry] Relay Coupler [Sentry] Relay Coupler [Sentry] Relay Coupler [Demolisher] Relay Coupler [Demolisher] Beam Rifle Heavy Laser Light Assault Rifle Flak Gun Advanced Assault Cannon Advanced Assault Cannon Mini Grenade Launcher Remote Datajack Remote Datajack Katana Katana [Rating: 86] Favorites ----------- Power Ion Engine Engine Ion Engine Propulsion Potential Leg Treads Light Treads Leg Potential Leg Utility Visual Processing Unit Device Cloak of Protection Storage Lightpack 2.0 Processor Visual Processing Unit Hackware Hacking Suite Protection Improved Light Armor Plating Weapon Assault Rifle Energy Gun Beam Rifle Ballistic Gun Assault Rifle Ballistic Cannon Advanced Assault Cannon Launcher Improved Grenade Launcher Special Weapon Remote Datajack Slashing Weapon Katana Build | -11 -10 -10 -10 -9 -8 -8 -8 -8 -7 -7 ------- Run | Scr Mat Min Exi Min Mat Gar Mat Gar Fac Gar Slots Evolved 6 | . . . . . 4 . . . 2 . Power . | . . . . . . . . . . . Propulsion . | . . . . . . . . . . . Utility 6 | . . . . . 4 . . . 2 . Weapon . | . . . . . . . . . . . Parts Attached 45 | . 2 1 3 . 4 3 1 2 14 15 Power 4 | . . . 1 . . . 1 . 2 . Engine 4 | . . . 1 . . . 1 . 2 . Core . | . . . . . . . . . . . Reactor . | . . . . . . . . . . . Propulsion 4 | . . . 2 . . . . . . 2 Treads 2 | . . . . . . . . . . 2 Leg 2 | . . . 2 . . . . . . . Wheel . | . . . . . . . . . . . Hover . | . . . . . . . . . . . Flight . | . . . . . . . . . . . Utility 15 | . 1 . . . 3 . . 1 5 5 Device 2 | . . . . . 1 . . . 1 . Storage 1 | . . . . . 1 . . . . . Processor 3 | . 1 . . . . . . . 2 . Hackware 5 | . . . . . 1 . . . . 4 Protection 4 | . . . . . . . . 1 2 1 Artifact . | . . . . . . . . . . . Weapon 22 | . 1 1 . . 1 3 . 1 7 8 Energy Gun 4 | . . . . . 1 . . . 2 1 Energy Cannon . | . . . . . . . . . . . Ballistic Gun 7 | . 1 1 . . . . . 1 4 . Ballistic Cannon 3 | . . . . . . 2 . . . 1 Launcher 3 | . . . . . . 1 . . . 2 Special Weapon 4 | . . . . . . . . . . 4 Impact Weapon . | . . . . . . . . . . . Slashing Weapon 1 | . . . . . . . . . 1 . Piercing Weapon . | . . . . . . . . . . . Special Melee Weapon . | . . . . . . . . . . . Unidentified Prototypes 2 | . . . . . . . . . 2 . Parts Lost 19 | . . 1 . . . . 1 2 4 11 Power 5 | . . 1 . . . . 1 . 2 1 Propulsion 3 | . . . . . . . . . . 3 Utility 4 | . . . . . . . . 1 . 3 Weapon 7 | . . . . . . . . 1 2 4 Highest Loss Streak 11 | . . 1 . . . . 1 1 2 11 To Critical Strikes . | . . . . . . . . . . . Average Slot Usage (%) 77 | . 90 83 89 100 76 77 71 76 65 73 Engine 7 | . 14 . 4 14 9 9 8 9 2 5 Leg 19 | . 28 28 28 28 18 18 18 18 15 12 Device 1 | . . . . . 9 5 . . . . Storage 9 | . 14 14 14 14 9 9 9 9 7 7 Processor 10 | . 5 14 14 14 9 9 9 9 10 15 Hackware 5 | . . . . . 4 9 9 9 7 9 Protection 2 | . . . . . . . . 4 5 5 Energy Gun 2 | . 1 . . . 6 1 . . 5 10 Ballistic Gun 11 | . 26 26 28 28 11 2 . 5 6 . Ballistic Cannon 3 | . . . . . . 7 9 9 . . Launcher 2 | . . . . . . 6 9 3 . . Naked Turns . | . . . . . . . . . . . Heaviest Build 30 | 12 12 8 13 13 22 30 24 27 26 25 Greatest Support 60 | 20 20 20 60 60 60 60 60 60 60 60 Greatest Overweight (x) . | . . . . . . . . . . . Average Overweight (x) . | . . . . . . . . . . . Largest Inventory Capacity 40 | . 8 8 8 8 40 40 40 40 40 40 Average Capacity 30 | . 8 8 8 8 40 40 40 40 40 40 Most Carried 32 | . 6 5 8 8 13 22 23 26 29 32 Average Carried 16 | . 5 5 5 7 6 17 22 23 24 28 Final Capacity 40 | 8 8 8 8 8 40 40 40 40 40 40 Final Carried 29 | 6 5 5 6 8 13 22 23 26 29 23 Class Distribution -------------------- 66% | Hauler-Mutant 28% | Mutant 4% | Bothacker-Mutant Dominant Class ---------------- Mutant | -10/Materials Mutant | -10/Mines Mutant | -10/Exiles Mutant | -9/Mines Hauler-Mutant | -8/Materials Hauler-Mutant | -8/Garrison Hauler-Mutant | -8/Materials Hauler-Mutant | -8/Garrison Hauler-Mutant | -7/Factory Bothacker-Mutant | -7/Garrison Resources | -11 -10 -10 -10 -9 -8 -8 -8 -8 -7 -7 ----------- Run | Scr Mat Min Exi Min Mat Gar Mat Gar Fac Gar Matter Collected 1636 | 200 164 22 . 15 132 265 . 357 419 62 Remotely . | . . . . . . . . . . . Salvage Created 1849 | . 283 32 . . 11 217 . 420 646 240 Parts 113 | . 21 6 . . 2 20 . 27 25 12 Haulers Intercepted . | . . . . . . . . . . . Recyclers Shooed 1 | . . . . . . . . . 1 . Parts Field Recycled . | . . . . . . . . . . . Retrieved Matter . | . . . . . . . . . . . Parts Self-Destructed . | . . . . . . . . . . . Prevented . | . . . . . . . . . . . Kills | -11 -10 -10 -10 -9 -8 -8 -8 -8 -7 -7 ------- Run | Scr Mat Min Exi Min Mat Gar Mat Gar Fac Gar Combat Hostiles Destroyed 72 | . 10 3 . . . 17 . 17 16 9 Melee 2 | . . . . . . . . . 2 . Guns 36 | . 10 3 . . . . . 7 13 3 Cannons 10 | . . . . . . 4 . 6 . . AOE 23 | . . . . . . 13 . 4 . 6 Classes Destroyed 7 | . 3 . . . 1 1 . . 1 1 Operator 2 | . . . . . 1 . . . 1 . Watcher 2 | . 1 . . . . 1 . . . . Swarmer 32 | . 6 3 . . . 11 . 6 5 1 Cutter 3 | . . . . . . . . . . 3 Grunt 32 | . 4 . . . . 5 . 11 7 5 Sentry 4 | . . . . . . 1 . . 3 . Hunter 1 | . . . . . . . . . 1 . Best Kill Streak 7 | . 6 3 . . 1 7 . 3 4 5 Combat Bots Only 7 | . 5 3 . . . 7 . 3 4 5 Max Kills in Single Turn 4 | . 1 1 . . 1 4 . 2 1 2 Gunslinging . | . . . . . . . . . . . Exploded 4 | . . . . . . 4 . 2 . 2 Melee 1 | . . . . . . . . . 1 . Uniques/NPCs Destroyed . | . . . . . . . . . . . Combat | -11 -10 -10 -10 -9 -8 -8 -8 -8 -7 -7 -------- Run | Scr Mat Min Exi Min Mat Gar Mat Gar Fac Gar Damage Taken 4521 | . 339 100 . . . 341 53 533 1537 1618 Core 930 | . 69 8 . . . 53 . 97 328 375 Absorbed by Shields . | . . . . . . . . . . . Redirected to Shielding 196 | . . . . . . . . . 94 102 Core Remaining (%) 80 | 100 . . . 69 . . . 72 . . Volleys Fired 202 | . 29 9 . . 2 41 . 45 48 28 Largest 2 | . 2 2 . . 2 2 . 2 2 2 Hottest 76 | . 60 40 . . 76 76 . 73 76 76 Shots Fired 305 | . 57 14 . . 4 43 . 63 87 37 Gun 196 | . 57 14 . . 4 4 . 18 80 19 Cannon 83 | . . . . . . 33 . 42 7 1 Launcher 16 | . . . . . . 6 . 3 . 7 Special 10 | . . . . . . . . . . 10 Kinetic 221 | . 52 14 . . 2 35 . 60 57 1 Thermal 53 | . . . . . 2 2 . . 30 19 Explosive 16 | . . . . . . 6 . 3 . 7 Electromagnetic 5 | . 5 . . . . . . . . . Robot Hit Streak 15 | . 5 2 . . 2 5 . 5 13 15 Robot Miss Streak 8 | . 2 2 . . 2 4 . 6 8 4 Penetration Max . | . . . . . . . . . . . Secondary Targets 4 | . 2 1 . . . . . . . 1 Max Gunslinging Chain 1 | . 1 1 . . . . . . . 1 Shots Hit Robots 197 | . 34 6 . . 2 19 . 29 83 24 Core Hits 139 | . 15 3 . . 1 22 . 25 53 20 Critical Kills . | . . . . . . . . . . . Critical Parts Destroyed 1 | . . . . . . . . . 1 . Critical Strikes 6 | . . . . . . 1 . 1 3 1 Burn 2 | . . . . . . . . . 1 1 Destroy 1 | . . . . . . . . . 1 . Blast 3 | . . . . . . 1 . 1 1 . Melee Attacks 5 | . . . . . . . . . 5 . Impact . | . . . . . . . . . . . Slashing 5 | . . . . . . . . . 5 . Piercing . | . . . . . . . . . . . Sneak Attacks 1 | . . . . . . . . . 1 . Combat Hostiles . | . . . . . . . . . . . Follow-up Attacks . | . . . . . . . . . . . Damage Inflicted 5690 | . 439 124 . . 25 1375 15 1041 1605 1066 Guns 2322 | . 436 114 . . 25 . . 267 1224 256 Cannons 1017 | . . . . . . 454 . 427 136 . Explosions 2078 | . . . . . . 921 . 347 . 810 Melee 217 | . . . . . . . . . 217 . Ramming 56 | . 3 10 . . . . 15 . 28 . Kinetic 2598 | . 405 114 . . 9 454 . 694 922 . Thermal 710 | . . . . . 16 . . . 438 256 Explosive 2078 | . . . . . . 921 . 347 . 810 Electromagnetic 31 | . 31 . . . . . . . . . Impact . | . . . . . . . . . . . Slashing 217 | . . . . . . . . . 217 . Piercing . | . . . . . . . . . . . Highest Corruption 4 | . 3 3 3 3 . . . . . 4 Average Corruption 3 | . 2 3 3 3 . . . . . 4 Corruption Purged . | . . . . . . . . . . . Corruption Blocked . | . . . . . . . . . . . Effects 17 | . 6 4 4 2 . . . . . 1 Message Errors 2 | . 1 1 . . . . . . . . Matter Fused 8 | . 1 2 2 2 . . . . . 1 Heat Flow Errors 2 | . 2 . . . . . . . . . Energy Discharges 2 | . 1 . 1 . . . . . . . Parts Rejected 1 | . . 1 . . . . . . . . Data Loss (major) 1 | . . . 1 . . . . . . . Weapon Failures 1 | . 1 . . . . . . . . . Overload Shots . | . . . . . . . . . . . Overflow Damage 190 | . . . . . . 99 . 50 17 24 Projectiles 74 | . . . . . . 24 . 50 . . Explosions 99 | . . . . . . 75 . . . 24 Melee 17 | . . . . . . . . . 17 . Knockbacks 7 | . . . . . . 3 . 4 . . Impact . | . . . . . . . . . . . Kinetic 7 | . . . . . . 3 . 4 . . Secondary . | . . . . . . . . . . . Self-Inflicted Damage 207 | . . . . . . 21 . 9 . 177 Shots 6 | . . . . . . 1 . 1 . 4 Rammed . | . . . . . . . . . . . Targets Rammed 12 | . 1 3 . . . . 2 . 6 . Kicked 12 | . 1 3 . . . . 2 . 6 . Crushed . | . . . . . . . . . . . Highest Temperature 183 | . 183 . . . 24 33 . 131 54 37 Average Temperature 31 | . 70 . . . 18 13 . 41 20 18 Received Heat Transfer 1404 | . 93 . . . . 153 . 243 447 468 Siege Activations . | . . . . . . . . . . . Robots Corrupted . | . . . . . . . . . . . Combat Hostiles . | . . . . . . . . . . . Parts Fried . | . . . . . . . . . . . Impact Corruptions . | . . . . . . . . . . . Robots Melted 1 | . . . . . . . . . 1 . Combat Hostiles 1 | . . . . . . . . . 1 . Parts Melted 7 | . . . . . . . . . 5 2 Heat Transferred 1702 | . . . . . 37 . . . 1036 629 Parts Sabotaged . | . . . . . . . . . . . Parts Stolen . | . . . . . . . . . . . Parts Stripped . | . . . . . . . . . . . Power Chain Reactions . | . . . . . . . . . . . Missiles Intercepted . | . . . . . . . . . . . Alert | -11 -10 -10 -10 -9 -8 -8 -8 -8 -7 -7 ------- Run | Scr Mat Min Exi Min Mat Gar Mat Gar Fac Gar Peak Influence 813 | . 315 182 . . 193 813 420 751 715 654 Initial 500 | . . 122 . . . 112 395 273 394 500 Average 417 | . 199 178 . . 107 460 406 542 569 588 Maximum Alert Level 3 | . 1 . . . . 3 2 3 3 2 Low Security (%) 26 | . 48 100 . 100 100 23 . . . . Level 1 17 | . 51 . . . . 32 9 17 2 . Level 2 47 | . . . . . . 22 90 74 87 100 Level 3 8 | . . . . . . 20 . 8 10 . Level 4 . | . . . . . . . . . . . Level 5 . | . . . . . . . . . . . High Security . | . . . . . . . . . . . Max Security . | . . . . . . . . . . . Squads Dispatched 8 | . 1 . . . 2 . . . 5 . Investigation . | . . . . . . . . . . . Extermination 1 | . . . . . . . . . 1 . Reinforcement 3 | . 1 . . . 1 . . . 1 . Assault . | . . . . . . . . . . . Garrison 4 | . . . . . 1 . . . 3 . Intercept . | . . . . . . . . . . . Searches Triggered . | . . . . . . . . . . . Construction Impeded . | . . . . . . . . . . . Haulers Reinforced . | . . . . . . . . . . . Active Scanning Responses . | . . . . . . . . . . . Cargo Convoy Interrupts . | . . . . . . . . . . . Stealth | -11 -10 -10 -10 -9 -8 -8 -8 -8 -7 -7 --------- Run | Scr Mat Min Exi Min Mat Gar Mat Gar Fac Gar Distress Signals 4 | . . . . . 1 2 1 . . . Communications Jammed . | . . . . . . . . . . . Distress Signals . | . . . . . . . . . . . Times Spotted 98 | . 15 2 . . 7 16 1 16 22 19 Peak Tracking Total 12 | . 4 2 . . 5 4 2 4 5 12 Tactical Retreats 5 | . . . . . . 2 1 . 1 1 Traps | -11 -10 -10 -10 -9 -8 -8 -8 -8 -7 -7 ------- Run | Scr Mat Min Exi Min Mat Gar Mat Gar Fac Gar Traps Triggered 7 | . 2 . . . . 4 . . . 1 Indirectly . | . . . . . . . . . . . Trap Hack Attempts . | . . . . . . . . . . . Triggered . | . . . . . . . . . . . Disarmed . | . . . . . . . . . . . Reprogrammed . | . . . . . . . . . . . Reused 2 | . . . . . . . . . 2 . Traps Extracted . | . . . . . . . . . . . Installed 3 | . . . . . . . . . 3 . Triggered 2 | . . . . . . . . . 2 . Most Traps Carried 4 | . . . . 4 4 4 4 4 3 . Machines | -11 -10 -10 -10 -9 -8 -8 -8 -8 -7 -7 ---------- Run | Scr Mat Min Exi Min Mat Gar Mat Gar Fac Gar Machines Disabled 9 | . . . . . . 3 . 4 1 1 Max in Single Turn 1 | . . . . . . 1 . 1 1 1 Garrison Relay 5 | . . . . . . 2 . 2 . 1 Machines Sabotaged . | . . . . . . . . . . . Garrisons Compromised . | . . . . . . . . . . . Overloaded Fab Kills . | . . . . . . . . . . . Hacking | -11 -10 -10 -10 -9 -8 -8 -8 -8 -7 -7 --------- Run | Scr Mat Min Exi Min Mat Gar Mat Gar Fac Gar Machines Accessed 10 | . 3 . 1 . 1 . 2 . 3 . Terminals 5 | . 3 . . . . . 1 . 1 . Fabricators 1 | . . . . . . . . . 1 . Repair Stations . | . . . . . . . . . . . Recycling Units . | . . . . . . . . . . . Scanalyzers . | . . . . . . . . . . . Garrison Access 3 | . . . . . 1 . 1 . 1 . Total Hacks 28 | . 13 . 1 . 4 . 6 . 4 . Successful 13 | . 5 . 1 . 1 . 4 . 2 . Failed 15 | . 8 . . . 3 . 2 . 2 . Catastrophic 2 | . 2 . . . . . . . . . Database Lockouts . | . . . . . . . . . . . Manual 19 | . 12 . 1 . . . 5 . 1 . Terminals 19 | . 13 . . . . . 5 . 1 . Fabricators 2 | . . . . . . . . . 2 . Repair Stations . | . . . . . . . . . . . Recycling Units . | . . . . . . . . . . . Scanalyzers . | . . . . . . . . . . . Garrison Access 6 | . . . . . 4 . 1 . 1 . Terminal Hacks 8 | . 5 . 1 . . . 2 . . . Robot Analysis 3 | . 3 . . . . . . . . . Branch Access Points 1 | . 1 . . . . . . . . . Terminal Index 1 | . . . . . . . 1 . . . Hauler Manifests 1 | . 1 . . . . . . . . . Registered Components 1 | . . . . . . . 1 . . . EX-Prototype ID Bank 1 | . . . 1 . . . . . . . Fabricator Hacks 1 | . . . . . . . . . 1 . Network Status 1 | . . . . . . . . . 1 . Repair Station Hacks . | . . . . . . . . . . . Recycling Unit Hacks . | . . . . . . . . . . . Scanalyzer . | . . . . . . . . . . . Garrison Access Hacks 3 | . . . . . 1 . 1 . 1 . Unlock Access 3 | . . . . . 1 . 1 . 1 . Unauthorized Hacks 1 | . . . . . . . 1 . . . Terminals 1 | . . . . . . . 1 . . . Operators 1 | . . . . . . . 1 . . . Fabricators . | . . . . . . . . . . . Repair Stations . | . . . . . . . . . . . Recycling Units . | . . . . . . . . . . . Scanalyzers . | . . . . . . . . . . . Garrison Access . | . . . . . . . . . . . Data Cores Recovered . | . . . . . . . . . . . Used . | . . . . . . . . . . . Hacking Detections 6 | . 3 . . . 1 . . . 2 . Full Trace Events . | . . . . . . . . . . . Feedback Events . | . . . . . . . . . . . Feedback Blocked . | . . . . . . . . . . . Robot Schematics Acquired . | . . . . . . . . . . . Robots Built . | . . . . . . . . . . . Authchips . | . . . . . . . . . . . Time . | . . . . . . . . . . . Total Robot Build Rating . | . . . . . . . . . . . Part Schematics Acquired . | . . . . . . . . . . . Parts Built . | . . . . . . . . . . . Authchips . | . . . . . . . . . . . Time . | . . . . . . . . . . . Total Part Build Rating . | . . . . . . . . . . . Parts Repaired . | . . . . . . . . . . . Time . | . . . . . . . . . . . Parts Recycled . | . . . . . . . . . . . Recycled Matter . | . . . . . . . . . . . Retrieved Matter . | . . . . . . . . . . . Retrieved Components . | . . . . . . . . . . . Parts Scanalyzed . | . . . . . . . . . . . Part Schematics Acquired . | . . . . . . . . . . . Parts Damaged . | . . . . . . . . . . . Bothacking | -11 -10 -10 -10 -9 -8 -8 -8 -8 -7 -7 ------------ Run | Scr Mat Min Exi Min Mat Gar Mat Gar Fac Gar Used RIF Installer 2 | . . . . . . 1 . 1 . . Hotswap 1 | . . . . . . . . 1 . . Robots Hacked 3 | . . . . . . . . . . 3 Non-combat . | . . . . . . . . . . . Combat 3 | . . . . . . . . . . 3 Robot Hacks Applied 3 | . . . . . . . . . . 3 overwrite_iff 2 | . . . . . . . . . . 2 formatsys_high 1 | . . . . . . . . . . 1 Relay Couplers Released 22 | . . . . . . 9 . 9 . 4 Machine Destruction 22 | . . . . . . 9 . 9 . 4 Attached 4 | . . . . . . . . . . 4 Fabnet Peak Effective % . | . . . . . . . . . . . Robots Rewired . | . . . . . . . . . . . Allies Hacked . | . . . . . . . . . . . Hacks Repelled . | . . . . . . . . . . . Allies | -11 -10 -10 -10 -9 -8 -8 -8 -8 -7 -7 -------- Run | Scr Mat Min Exi Min Mat Gar Mat Gar Fac Gar Total Allies 6 | . . . . 3 . . . . . 3 Largest Group 3 | . . . . 3 3 . . . . 1 Highest-Rated Group 40 | . . . . 40 40 . . . . 30 Highest-Rated Ally 30 | . . . . 16 16 . . . . 30 Total Orders . | . . . . . . . . . . . Ally Attacks 33 | . . . . . 30 . . . . 3 Total Damage 373 | . . . . . 322 . . . . 51 Kills 4 | . . . . . 4 . . . . . Allies Corrupted . | . . . . . . . . . . . Allies Melted . | . . . . . . . . . . . Intel | -11 -10 -10 -10 -9 -8 -8 -8 -8 -7 -7 ------- Run | Scr Mat Min Exi Min Mat Gar Mat Gar Fac Gar Robot Analysis Total 3 | . 3 . . . . . . . . . Derelict Logs Recovered 2 | . . 2 . . . . . . . . Drone Launches . | . . . . . . . . . . . Drone Recoveries . | . . . . . . . . . . . Exploration | -11 -10 -10 -10 -9 -8 -8 -8 -8 -7 -7 ------------- Run | Scr Mat Min Exi Min Mat Gar Mat Gar Fac Gar Turns Passed 3356 | . 386 192 246 128 171 664 118 508 770 173 Spaces Moved 2562 | 1 239 137 224 132 156 531 124 412 511 95 Core . | . . . . . . . . . . . Treads 4 | . . . . . . . . . . 4 Legs 2558 | 1 239 137 224 132 156 531 124 412 511 91 Wheels . | . . . . . . . . . . . Hover . | . . . . . . . . . . . Flight . | . . . . . . . . . . . Fastest Speed 90 | 120 120 120 90 90 90 90 90 90 90 90 Average Speed 95 | 120 120 120 106 90 90 90 90 90 90 92 Slowest Speed 160 | 120 120 120 120 90 90 90 90 90 90 160 Overloaded Moves . | . . . . . . . . . . . Propulsion Burnouts . | . . . . . . . . . . . Robots Hopped . | . . . . . . . . . . . Cave-ins Triggered . | . . . . . . . . . . . Exploration Rate (%) 35 | 1 52 35 64 47 13 54 16 70 18 25 Regions Visited 10 Branch Regions 3 Pre-discovered Areas 2 | . . 1 . 1 . . . . . . Known Exits Taken 4 | . 1 . . . 1 . 1 . 1 . Unknown Exits Taken 4 | 1 . 1 1 1 . . . . . . Scrap Searched 1 | . . . . 1 . . . . . . Spaces Dug 11 | . . . . . . 9 . 2 . . Terrain Destroyed 78 | . . . . . . 50 . 9 1 18 Melee . | . . . . . . . . . . . Projectile 2 | . . . . . . 1 . . 1 . AOE 76 | . . . . . . 49 . 9 . 18 Terrain Rammed . | . . . . . . . . . . . Walls Destroyed . | . . . . . . . . . . . Machines Disabled . | . . . . . . . . . . . Actions | -11 -10 -10 -10 -9 -8 -8 -8 -8 -7 -7 --------- Run | Scr Mat Min Exi Min Mat Gar Mat Gar Fac Gar Total 3145 | . 279 149 232 142 183 673 130 486 724 147 Wait 238 | . 8 . . 3 7 85 . 19 116 . Move 2554 | . 238 136 223 131 156 529 124 411 511 95 Hop . | . . . . . . . . . . . Pick Up 57 | . . . 2 5 11 10 3 9 12 5 Fast Attach 13 | . 1 1 . . 2 . . . 9 . Attach 18 | . . . 1 . 2 . 1 2 3 9 Detach 2 | . . . . . . 1 . . 1 . Swap 15 | . 1 . 2 . . 3 . . 3 6 Drop 21 | . 1 . 4 3 3 . . . 7 3 Fire 202 | . 29 9 . . 2 41 . 45 48 28 Melee 5 | . . . . . . . . . 5 . Ram . | . . . . . . . . . . . Kick 12 | . 1 3 . . . . 2 . 6 . Crush . | . . . . . . . . . . . Escape Stasis 5 | . . . . . . 4 . . . 1 Rewire . | . . . . . . . . . . . Trap 3 | . . . . . . . . . 3 . Miscellaneous . | . . . . . . . . . . . Route ------- -11/Scrapyard -10/Materials (discovered 3 exits: [*Mat] / *Min x2) -10/Mines (discovered 2 exits: [*Mat] / *Exi) -10/Exiles (discovered 2 exits: [*Min x2]) -9/Mines -8/Materials -8/Garrison (discovered 2 exits: *Mat x2) -8/Materials -8/Garrison (discovered 3 exits: *Fac x3) -7/Factory -7/Garrison History --------- Turn | Location | Event 1 | -11/Scrapyard | Discovered new exit (range 0) 1 | -11/Scrapyard | Entered Materials 244 | -10/Materials | Discovered new exit (range 14) 260 | -10/Materials | Identified exit to Mines 307 | -10/Materials | Build established: Mutant 387 | -10/Materials | Entered Mines 419 | -10/Mines | Discovered new exit (range 11) 510 | -10/Mines | Learned Materials stockpile data 545 | -10/Mines | Learned location of Storage (-7) 573 | -10/Mines | Deemed a non-threat by the Exiles lab entrance 574 | -10/Mines | Discovered new exit (range 5) 579 | -10/Mines | Entered Exiles 595 | -10/Exiles | Discovered new exit (range 17) 612 | -10/Exiles | Met 8R-AWN 630 | -10/Exiles | Met EX-HEX 667 | -10/Exiles | Met EX-BIN 684 | -10/Exiles | Aligned with FarCom system 685 | -10/Exiles | Given EX-Vault access code 715 | -10/Exiles | Opened EX-Vault 726 | -10/Exiles | Found Potential Leg 728 | -10/Exiles | Found Potential Leg 732 | -10/Exiles | Found Cloak of Protection 737 | -10/Exiles | Found Lightpack 2.0 759 | -10/Exiles | Warned to stay clear of 0b10 Research branches 783 | -10/Exiles | Met EX-DEC 817 | -10/Exiles | Discovered new exit (range 11) 825 | -10/Exiles | Stole three prototypes: Potential Leg, Lightpack 2.0, Cloak of Protection 825 | -10/Exiles | Entered Mines 859 | -9/Mines | Found a hidden stash of uninstalled traps 930 | -9/Mines | Discovered new exit (range 8) 943 | -9/Mines | Assisted by bots powering up and referring to "LRC-V3" 953 | -9/Mines | Entered Materials 953 | -8/Materials | Accompanied by 3 allies 953 | -8/Materials | Evolved 4 slots: Utility x4 1029 | -8/Materials | Garrison activated, responded to threat 1124 | -8/Materials | Identified exit to Garrison 1124 | -8/Materials | Entered Garrison 1152 | -8/Garrison | Triggered checkpoint 1162 | -8/Garrison | Garrison Relay disabled 1201 | -8/Garrison | Triggered checkpoint 1246 | -8/Garrison | Build established: Hauler-Mutant 1386 | -8/Garrison | Discovered new exit (range 12) 1555 | -8/Garrison | Triggered checkpoint 1578 | -8/Garrison | Destroyed 7 combat bots 1603 | -8/Garrison | Discovered new exit (range 9) 1616 | -8/Garrison | Installed Relay Interface Framework 1652 | -8/Garrison | Triggered checkpoint 1665 | -8/Garrison | Garrison Relay disabled 1788 | -8/Garrison | Entered Materials 1906 | -8/Materials | Identified exit to Garrison 1906 | -8/Materials | Entered Garrison 1912 | -8/Garrison | Triggered checkpoint 1987 | -8/Garrison | Triggered checkpoint 2096 | -8/Garrison | Triggered checkpoint 2144 | -8/Garrison | Discovered new exit (range 13) 2190 | -8/Garrison | Triggered checkpoint 2262 | -8/Garrison | Triggered checkpoint 2272 | -8/Garrison | Garrison Relay disabled 2303 | -8/Garrison | Discovered new exit (range 17) 2387 | -8/Garrison | Discovered new exit (range 8) 2398 | -8/Garrison | Expanded RIF knowledge: Hotswap 2414 | -8/Garrison | Entered Factory 2414 | -7/Factory | Evolved 2 slots: Utility x2 2416 | -7/Factory | FarCom data flow suspended 2673 | -7/Factory | Garrison activated, responded to threat 3184 | -7/Factory | Identified exit to Garrison 3184 | -7/Factory | Entered Garrison 3206 | -7/Garrison | Triggered checkpoint 3247 | -7/Garrison | Core integrity fell below 50% 3249 | -7/Garrison | Garrison Relay disabled 3308 | -7/Garrison | Triggered checkpoint 3345 | -7/Garrison | Core integrity fell below 20% 3357 | -7/Garrison | Destroyed by G-47 Trooper with Particle Gun Last Messages --------------- 03345_ S-27 Virus destroyed. 03346_ Remote Datajack destroyed. 03346_ Knocked back. 03346_ Relay Coupler [Duelist] destroyed. 03346_ System corrupted by crushing effect (+4). 03346_ Knocked back. 03347_ Destroyed Aluminum Leg. 03347_ C-17 Slicer destroyed. 03347_ Destroyed Reaction Control System. 03348_ Knocked back. 03348_ S-27 Virus knocked back. 03349_ C-17 Slicer destroyed. 03351_ Slug penetrates Wall. 03351_ G-47 Trooper destroyed. 03351_ S-27 Virus destroyed. 03353_ The unstable cave ceiling collapses. 03354_ Slug penetrates Wall. 03355_ Mni. Grenade Launcher destroyed. 03356_ System corrupted: Matter fused (-7). 03357_ Penetrated by Slug. Map ----- +----------------------------------------------------+ | ?????????????????????????????????????????????????? | | ?????????????????????????????????????????????????? | | ?????????????????????????????????????????????????? | | ?????????????????????????????????????????????????? | | ?????????????????????????????????????????????????? | | ?????????????????????????????????????????????????? | | ?????????????????????????????????????????????????? | | ?????????????????????????????????????????????????? | | ?????????????????????????????????????????????????? | | ?????????????????????????????????????????????????? | | ?????????????????????????????? ??????????????????? | | ????????????????????????????##+##????????????????? | | ????????????????????????????# ??? ?????????? | | ???????????????????????????? ?? ?????????? | | ???????????????????????????? ?? ^ ?? #?????? | | ????????????????????????????# #? #? #?????? | | ??????????????????????????### ## ## #?????? | | ??????????????????????????# "?????? | | ??????????????????????????# ??????? | | ??????????????????????????? == ???????? | | ????????????????????????????=/Y ?????????? | | ???????????????????????????##h #????#?????? | | ??????????????????######### ## ####??? | | ??????????????????# g ?? | | ??????????????????# [ g = / ?? | | ??????????????????# @ / #?????? | | ??????????????????# #### # ###????????? | | ??????????????????# #???## #?? #??????????? | | ??????????######### ^#??????# # #????#??????????? | | ??????????#"# + ?# #?????? # #???????????????? | | ??????????#" +??# #?????######???????????????? | | ??????????# [%#??# #??????????????????????????? | | ??????????#" #??# #??????????????????????????? | | ??????????#"# #??# #??????????????????????????? | | ??????????### #??# #??????????????????????????? | | ????????????# #??# #??????????????????????????? | | ????????????# #??# #??????????????????????????? | | ??????????### #??# #??????????????????????????? | | ??????????# #??# #??????????????????????????? | | ??????????# #??# #??????????????????????????? | | ??????????# #??# #??????????????????????????? | | ??????????### #??# #??????????????????????????? | | ????????????# =#### #??????????????????????????? | | ????????????# [ ! #??????????????????????????? | | ????????????# *!!% #??????????????????????????? | | ????????????####### #??????????????????????????? | | ??????????????????# #??????????????????????????? | | ??????????????????# #??????????????????????????? | | ??????????????????# #??????????????????????????? | | ??????????????????# #??????????????????????????? | +----------------------------------------------------+ Best States ------------- Heat Dissipation 48 Energy Generation 18 Energy Capacity 265 Matter Stores 300 Matter Capacity 300 Sight Range 18 Terrain Scan Density 10 Armor Coverage 150 Weapon Shielding 66 Evasion (%) 57 Recoil Reduction 1 Salvage Targeting 2 Offensive Hacking 10 Relay Coupler Types 3 Relay Coupler Value 71 Item Schematics ----------------- None Robot Schematics ------------------ None Fabricated ------------ Nothing Alien Tech Used ----------------- None Achievements -------------- None Challenges ------------ None Game ------ Seed ParticleCouplerKit Manual? 0 Play Time 00:36:33 Cumulative 233.0 hours Start 2022.06.12 @ 13:51:08 End 2022.06.12 @ 14:52:03 Sessions 3 Manual Loads 0 Difficulty Rogue Special Mode None Game No. 290 Rogue 290 Adventurer 0 Explorer 0 Win Type - Total 11 Types 8/0/2/1/0/0/0/0/0 Lore% 69 Gallery% 85 Achievement% 74 Wizard Run 0 Options --------- ASCII 0 Keyboard 0 Movement Numpad Keybinds 0 Fullscreen 1 Font 18/Terminus Map View 76x50 Tactical HUD 1 Map Filters NONE Filters NONE Steam 1 RUN: 4c6c5309-fb5a-4fb1-8bc4-2f07b650854e